[Event "Denmark Team Championship 2022"]
[Site "Denmark"]
[Date "2022.10.29"]
[Round "1.5"]
[White "Heimisson, Hilmir Freyr"]
[Black "Kistrup, Nicolai"]
[Result "1/2-1/2"]
[ECO "E20"]
[WhiteElo "2293"]
[BlackElo "2274"]
[Annotator "ChessBase"]
[PlyCount "98"]
[EventDate "2022.10.29"]
[EventType "team-tourn"]
[EventCountry "DEN"]
[SourceTitle "playchess.com"]
[Source "ChessBase"]
[SourceQuality "1"]
[TimeControl "40/5400+30:1800+30"]

1. d4 {[%emt 0:00:07]} Nf6 {[%emt 0:00:25]} 2. c4 {[%emt 0:00:13]} e6 {[%emt 0:00:10]} 3. Nc3 {[%emt 0:00:07]} Bb4 {[%emt 0:08:34]} 4. Bd2 {[%emt 0:00:08]} O-O {[%emt 0:01:24]} 5. Nf3 {[%emt 0:00:08]} d5 {[%emt 0:02:09]} 6. e3 {[%emt 0:00:15]} b6 {[%emt 0:01:39]} 7. cxd5 {[%emt 0:00:30]} exd5 {[%emt 0:00:07]} 8. Rc1 {[%emt 0:00:08]} Re8 {[%emt 0:06:22]} 9. Bd3 {[%emt 0:00:21]} Bf8 {[%emt 0:04:08]} 10. Ne5 {[%emt 0:01:05]} c5 {[%emt 0:04:01]} 11. O-O {[%emt 0:00:45]} Bb7 {[%emt 0:02:15]} 12. f4 {[%emt 0:00:49]} Nc6 {[%emt 0:26:11]} 13. Ne2 {[%emt 0:00:30]} Rc8 {[%emt 0:08:36]} 14. Be1 {[%emt 0:00:11]} Ne4 {[%emt 0:03:41]} 15. Bxe4 {[%emt 0:26:45]} dxe4 {[%emt 0:00:17]} 16. Nxf7 {[%emt 0:00:05]} Kxf7 {[%emt 0:08:26]} 17. Qb3+ {[%emt 0:00:10]} c4 {[%emt 0:04:40]} 18. Qxc4+ {[%emt 0:04:05]} Kg6 {[%emt 0:00:21]} 19. f5+ {[%emt 0:26:39]} Kh6 {[%emt 0:00:35]} 20. Bg3 {[%emt 0:08:21]} Bd6 {[%emt 0:07:48]} 21. Nf4 {[%emt 0:07:29]} Qd7 {[%emt 0:07:27]} 22. Ne6 {[%emt 0:07:33]} Nd8 {[%emt 0:01:30]} 23. Qe2 {[%emt 0:11:41]} Nxe6 {[%emt 0:00:05]} 24. Qg4 {[%emt 0:00:39]} g5 {[%emt 0:00:56]} 25. Qh3+ {[%emt 0:03:08]} Kg7 {[%emt 0:00:08]} 26. fxe6 {[%emt 0:00:29]} Qxe6 {[%emt 0:00:51]} 27. Bxd6 {[%emt 0:00:17]} Qxd6 28. Qf5 {[%emt 0:00:59]} Qg6 {[%emt 0:01:11]} 29. Qd7+ {[%emt 0:00:14]} Kh8 {[%emt 0:00:24]} 30. Qxb7 {[%emt 0:00:19]} Rxc1 {[%emt 0:00:22]} 31. Rxc1 {[%emt 0:00:03]} Rf8 {[%emt 0:00:45]} 32. Rc8 {[%emt 0:00:44]} Rxc8 {[%emt 0:00:29]} 33. Qxc8+ {[%emt 0:00:04]} Kg7 {[%emt 0:00:07]} 34. Qd7+ {[%emt 0:00:40]} Kh6 {[%emt 0:00:12]} 35. Qh3+ {[%emt 0:00:15]} Kg7 {[%emt 0:00:05]} 36. Qd7+ {[%emt 0:00:04]} Kh6 {[%emt 0:00:04]} 37. h3 {[%emt 0:02:02]} a5 {[%emt 0:01:42]} 38. d5 {[%emt 0:00:27]} Qf6 {[%emt 0:00:41]} 39. d6 {[%emt 0:00:31]} Qxb2 {[%emt 0:00:38]} 40. Qe6+ {[%emt 0:00:18]} Kg7 {[%emt 0:00:32]} 41. d7 {[%emt 0:30:45]} Qc1+ {[%emt 0:01:52]} 42. Kh2 {[%emt 0:00:00]} Qc7+ {[%emt 0:00:10]} 43. Kg1 {[%emt 0:00:00]} Qc1+ {[%emt 0:00:15]} 44. Kf2 {[%emt 0:00:00]} Qd2+ {[%emt 0:00:57]} 45. Kg1 {[%emt 0:00:00]} Qxe3+ {[%emt 0:06:56]} 46. Kh1 {[%emt 0:00:00]} Qc1+ {[%emt 0:01:29]} 47. Kh2 {[%emt 0:00:00]} Qf4+ {[%emt 0:04:48]} 48. Kh1 {[%emt 0:00:00]} Qc1+ {[%emt 0:01:14]} 49. Kh2 {[%emt 0:00:00]} Qf4+ {[%emt 0:00:33]} 1/2-1/2

[Event "Denmark Team Championship 2022"]
[Site "Denmark"]
[Date "2022.10.29"]
[Round "1.5"]
[White "Rewitz, Poul"]
[Black "Storme, Isak"]
[Result "0-1"]
[ECO "C45"]
[WhiteElo "2172"]
[BlackElo "2424"]
[Annotator "ChessBase"]
[PlyCount "42"]
[EventDate "2022.10.29"]
[EventType "team-tourn"]
[EventCountry "DEN"]
[SourceTitle "playchess.com"]
[Source "ChessBase"]
[SourceQuality "1"]
[TimeControl "40/5400+30:1800+30"]

1. e4 {[%emt 0:00:08]} e5 {[%emt 0:00:12]} 2. Nf3 {[%emt 0:00:16]} Nc6 {[%emt 0:00:07]} 3. d4 {[%emt 0:00:04]} exd4 {[%emt 0:00:10]} 4. Nxd4 {[%emt 0:00:08]} Nf6 {[%emt 0:00:53]} 5. Nxc6 {[%emt 0:00:15]} bxc6 {[%emt 0:00:08]} 6. e5 {[%emt 0:00:31]} Qe7 {[%emt 0:00:11]} 7. Qe2 {[%emt 0:00:16]} Nd5 {[%emt 0:00:18]} 8. c4 {[%emt 0:00:51]} Ba6 {[%emt 0:00:23]} 9. h4 {[%emt 0:03:16]} g6 {[%emt 0:11:31]} 10. Bg5 {[%emt 0:02:51]} Qb4+ {[%emt 0:03:18]} 11. Kd1 {[%emt 0:09:28]} Bxc4 {[%emt 0:07:08]} 12. Qd2 {[%emt 0:13:35]} Bxa2 {[%emt 0:11:04]} 13. Qxb4 {[%emt 0:01:47]} Nxb4 {[%emt 0:00:07]} 14. Nd2 {[%emt 0:05:31]} Bg7 {[%emt 0:06:06]} 15. f4 {[%emt 0:09:59]} h6 {[%emt 0:04:00]} 16. Bf6 {[%emt 0:00:26]} Bxf6 {[%emt 0:00:24]} 17. exf6 {[%emt 0:00:06]} Be6 {[%emt 0:00:14]} 18. h5 {[%emt 0:05:45]} Nd5 {[%emt 0:04:25]} 19. hxg6 {[%emt 0:06:16]} fxg6 {[%emt 0:00:14]} 20. Bd3 {[%emt 0:00:18]} Kf7 {[%emt 0:00:25]} 21. g3 {[%emt 0:00:50]} Nxf6 {[%emt 0:00:31]} 0-1

[Event "Denmark Team Championship 2022"]
[Site "Denmark"]
[Date "2022.10.29"]
[Round "1.6"]
[White "Schmidt, Kristen"]
[Black "Ahlander, Bjorn"]
[Result "1/2-1/2"]
[ECO "B22"]
[WhiteElo "2273"]
[BlackElo "2406"]
[Annotator "ChessBase"]
[PlyCount "86"]
[EventDate "2022.10.29"]
[EventType "team-tourn"]
[EventCountry "DEN"]
[SourceTitle "playchess.com"]
[Source "ChessBase"]
[SourceQuality "1"]
[TimeControl "40/5400+30:1800+30"]

1. e4 {[%emt 0:00:02]} c5 {[%emt 0:00:09]} 2. c3 {[%emt 0:00:22]} d5 {[%emt 0:02:20]} 3. e5 {[%emt 0:01:08]} Nc6 {[%emt 0:00:20]} 4. d4 {[%emt 0:01:08]} Bf5 {[%emt 0:02:28]} 5. Nf3 {[%emt 0:01:33]} e6 {[%emt 0:00:50]} 6. Be2 {[%emt 0:00:43]} Nh6 {[%emt 0:23:02]} 7. O-O {[%emt 0:03:30]} a6 {[%emt 0:01:13]} 8. h3 {[%emt 0:10:09]} cxd4 {[%emt 0:04:47]} 9. cxd4 {[%emt 0:12:55]} Be4 {[%emt 0:10:12]} 10. Bxh6 {[%emt 0:22:47]} gxh6 {[%emt 0:00:07]} 11. Nbd2 {[%emt 0:00:18]} Rg8 {[%emt 0:14:48]} 12. Qb3 {[%emt 0:05:57]} Bb4 {[%emt 0:01:22]} 13. Qe3 {[%emt 0:01:27]} Bxd2 {[%emt 0:08:40]} 14. Qxd2 {[%emt 0:00:39]} Bxf3 {[%emt 0:00:28]} 15. Bxf3 {[%emt 0:00:24]} Qh4 {[%emt 0:00:03]} 16. Rfd1 {[%emt 0:01:43]} Qxh3 {[%emt 0:01:00]} 17. Qf4 {[%emt 0:00:44]} O-O-O {[%emt 0:03:37]} 18. Rac1 {[%emt 0:02:24]} Kb8 {[%emt 0:00:41]} 19. Kf1 {[%emt 0:03:49]} Qf5 {[%emt 0:01:21]} 20. Qxf5 {[%emt 0:01:00]} exf5 {[%emt 0:00:03]} 21. Rc5 {[%emt 0:01:26]} Ne7 {[%emt 0:01:30]} 22. Ke2 {[%emt 0:00:33]} Rc8 {[%emt 0:02:57]} 23. Rxc8+ {[%emt 0:03:06]} Rxc8 {[%emt 0:00:22]} 24. Kd3 {[%emt 0:00:10]} Rc6 {[%emt 0:01:53]} 25. Rh1 {[%emt 0:05:35]} Kc7 {[%emt 0:00:03]} 26. Bh5 {[%emt 0:04:44]} f6 {[%emt 0:01:41]} 27. Bf7 {[%emt 0:01:42]} fxe5 {[%emt 0:03:42]} 28. dxe5 {[%emt 0:01:54]} Rb6 {[%emt 0:06:23]} 29. b3 {[%emt 0:02:56]} Nc6 {[%emt 0:02:55]} 30. f4 {[%emt 0:00:50]} Nb4+ {[%emt 0:03:36]} 31. Kd4 {[%emt 0:00:44]} Nxa2 {[%emt 0:00:43]} 32. Bxd5 {[%emt 0:00:47]} Nb4 {[%emt 0:00:34]} 33. Bc4 {[%emt 0:07:17]} Nc6+ {[%emt 0:00:29]} 34. Ke3 {[%emt 0:01:51]} Ne7 {[%emt 0:00:16]} 35. e6 {[%emt 0:00:23]} Rb4 {[%emt 0:00:42]} 36. Rd1 {[%emt 0:00:31]} b5 {[%emt 0:01:07]} 37. Rd7+ {[%emt 0:00:04]} Kc6 {[%emt 0:00:26]} 38. Rxe7 {[%emt 0:01:15]} bxc4 {[%emt 0:00:03]} 39. bxc4 {[%emt 0:00:20]} Rxc4 {[%emt 0:00:22]} 40. Kf3 {[%emt 0:01:06]} Rc3+ {[%emt 0:02:27]} 41. Kf2 {[%emt 0:30:32]} Rc2+ {[%emt 0:06:37]} 42. Kf3 {[%emt 0:00:00]} Rc3+ {[%emt 0:00:45]} 43. Kf2 {[%emt 0:00:00]} Rc2+ {[%emt 0:03:21]} 1/2-1/2

[Event "Denmark Team Championship 2022"]
[Site "Denmark"]
[Date "2022.10.29"]
[Round "1.6"]
[White "Jacobsen, Mikkel Manosri"]
[Black "Baekgaard, Martin"]
[Result "1-0"]
[ECO "A48"]
[WhiteElo "2267"]
[BlackElo "2296"]
[Annotator "ChessBase"]
[PlyCount "77"]
[EventDate "2022.10.29"]
[EventType "team-tourn"]
[EventCountry "DEN"]
[SourceTitle "playchess.com"]
[Source "ChessBase"]
[SourceQuality "1"]
[TimeControl "40/5400+30:1800+30"]

1. d4 {[%emt 0:00:03]} Nf6 {[%emt 0:00:14]} 2. Nf3 {[%emt 0:00:04]} g6 {[%emt 0:00:34]} 3. Bf4 {[%emt 0:00:27]} Bg7 {[%emt 0:01:57]} 4. c3 {[%emt 0:00:09]} d6 {[%emt 0:05:04]} 5. Nbd2 {[%emt 0:00:08]} O-O {[%emt 0:02:48]} 6. e4 {[%emt 0:00:20]} Nbd7 {[%emt 0:00:54]} 7. Be2 {[%emt 0:00:07]} Qe8 {[%emt 0:03:08]} 8. h3 {[%emt 0:00:36]} e5 {[%emt 0:06:44]} 9. dxe5 {[%emt 0:00:33]} dxe5 {[%emt 0:09:32]} 10. Be3 {[%emt 0:00:22]} Qe7 {[%emt 0:01:14]} 11. O-O {[%emt 0:01:10]} Re8 {[%emt 0:05:29]} 12. Qc2 {[%emt 0:00:41]} b6 {[%emt 0:04:30]} 13. a4 {[%emt 0:03:52]} Bb7 {[%emt 0:04:43]} 14. a5 {[%emt 0:03:19]} Nc5 {[%emt 0:01:52]} 15. Ng5 {[%emt 0:00:10]} h6 {[%emt 0:10:07]} 16. b4 {[%emt 0:00:27]} Ncd7 {[%emt 0:13:04]} 17. Ngf3 {[%emt 0:01:00]} Rab8 {[%emt 0:00:33]} 18. axb6 {[%emt 0:09:24]} axb6 {[%emt 0:00:05]} 19. Ra7 {[%emt 0:00:32]} Nf8 {[%emt 0:01:23]} 20. Rfa1 {[%emt 0:04:00]} N6d7 {[%emt 0:04:27]} 21. Bc4 {[%emt 0:06:55]} Ne6 {[%emt 0:00:34]} 22. Bd5 {[%emt 0:01:21]} c6 {[%emt 0:00:38]} 23. Bc4 {[%emt 0:01:26]} Nc7 {[%emt 0:01:41]} 24. Qd3 {[%emt 0:05:04]} Red8 {[%emt 0:00:58]} 25. Qf1 {[%emt 0:00:18]} Bf8 {[%emt 0:04:09]} 26. g3 {[%emt 0:06:48]} Qf6 {[%emt 0:00:18]} 27. Nh2 {[%emt 0:02:20]} b5 {[%emt 0:07:11]} 28. Be2 {[%emt 0:04:09]} Ne6 {[%emt 0:02:45]} 29. Nb3 {[%emt 0:06:12]} Ng5 {[%emt 0:04:36]} 30. Na5 {[%emt 0:07:48]} Ba8 {[%emt 0:03:28]} 31. f3 {[%emt 0:06:40]} Qe6 {[%emt 0:00:39]} 32. h4 {[%emt 0:01:01]} Nh7 {[%emt 0:00:05]} 33. Qf2 {[%emt 0:00:28]} Nhf6 {[%emt 0:00:41]} 34. Bd1 {[%emt 0:01:56]} Rbc8 {[%emt 0:00:47]} 35. Bb3 {[%emt 0:00:36]} Qe8 {[%emt 0:00:10]} 36. Ng4 {[%emt 0:03:12]} Nxg4 {[%emt 0:00:41]} 37. fxg4 {[%emt 0:00:02]} Kg7 {[%emt 0:00:46]} 38. Rf1 {[%emt 0:01:12]} f6 {[%emt 0:00:10]} 39. Qxf6+ {[%emt 0:00:20]} 1-0

[Event "Denmark Team Championship 2022"]
[Site "Denmark"]
[Date "2022.10.29"]
[Round "1.6"]
[White "Ostergaard, Jens"]
[Black "Pedersen, Gunnar"]
[Result "1-0"]
[ECO "A41"]
[WhiteElo "2253"]
[BlackElo "2221"]
[Annotator "ChessBase"]
[PlyCount "107"]
[EventDate "2022.10.29"]
[EventType "team-tourn"]
[EventCountry "DEN"]
[SourceTitle "playchess.com"]
[Source "ChessBase"]
[SourceQuality "1"]
[TimeControl "40/5400+30:1800+30"]

1. d4 {[%emt 0:00:06]} d6 {[%emt 0:00:38]} 2. Nf3 {[%emt 0:00:15]} Nf6 {[%emt 0:00:26]} 3. c4 {[%emt 0:00:07]} c6 {[%emt 0:00:20]} 4. Nc3 {[%emt 0:00:10]} Qa5 {[%emt 0:00:27]} 5. Bd2 {[%emt 0:08:17]} Qb6 {[%emt 0:00:54]} 6. b4 {[%emt 0:02:09]} Bg4 {[%emt 0:02:55]} 7. c5 {[%emt 0:03:55]} Qc7 {[%emt 0:01:27]} 8. h3 {[%emt 0:07:16]} Bxf3 {[%emt 0:00:47]} 9. exf3 {[%emt 0:00:23]} e5 {[%emt 0:02:35]} 10. dxe5 {[%emt 0:01:39]} dxe5 {[%emt 0:00:10]} 11. Bc4 {[%emt 0:00:57]} Be7 {[%emt 0:01:36]} 12. O-O {[%emt 0:03:56]} O-O {[%emt 0:00:47]} 13. Re1 {[%emt 0:03:49]} b6 {[%emt 0:12:46]} 14. cxb6 {[%emt 0:15:00]} axb6 {[%emt 0:00:14]} 15. Qb3 {[%emt 0:01:23]} Nbd7 {[%emt 0:04:27]} 16. Bg5 {[%emt 0:02:06]} h6 {[%emt 0:05:35]} 17. Bh4 {[%emt 0:01:08]} b5 {[%emt 0:12:26]} 18. Bd3 {[%emt 0:02:18]} Nb6 {[%emt 0:01:55]} 19. Rac1 {[%emt 0:10:57]} Qd6 {[%emt 0:10:54]} 20. Bxf6 {[%emt 0:11:05]} gxf6 {[%emt 0:00:13]} 21. Ne4 {[%emt 0:00:38]} Qxb4 {[%emt 0:00:13]} 22. Nxf6+ {[%emt 0:01:43]} Kh8 {[%emt 0:03:00]} 23. Qxb4 {[%emt 0:02:13]} Bxb4 {[%emt 0:00:07]} 24. Rxe5 {[%emt 0:00:55]} Rfd8 {[%emt 0:02:44]} 25. Bf1 {[%emt 0:03:55]} Nc4 {[%emt 0:00:16]} 26. Bxc4 {[%emt 0:01:57]} bxc4 {[%emt 0:00:05]} 27. Re2 {[%emt 0:00:42]} c3 {[%emt 0:07:26]} 28. Rec2 {[%emt 0:03:49]} Ba3 {[%emt 0:12:48]} 29. Re1 {[%emt 0:01:14]} Bb2 {[%emt 0:02:44]} 30. Ne4 {[%emt 0:01:08]} Rxa2 {[%emt 0:05:51]} 31. Nxc3 {[%emt 0:00:59]} Ra1 {[%emt 0:00:09]} 32. Rxa1 {[%emt 0:00:37]} Bxa1 {[%emt 0:00:08]} 33. Ne4 {[%emt 0:02:25]} Be5 {[%emt 0:01:31]} 34. g4 {[%emt 0:01:10]} Rc8 {[%emt 0:01:20]} 35. Kg2 {[%emt 0:00:50]} Kg7 {[%emt 0:00:05]} 36. Nc5 {[%emt 0:01:18]} h5 {[%emt 0:02:27]} 37. Rc4 {[%emt 0:01:10]} Bd6 {[%emt 0:03:13]} 38. Ne4 {[%emt 0:02:13]} Be7 {[%emt 0:00:41]} 39. f4 {[%emt 0:00:20]} c5 {[%emt 0:03:03]} 40. Kf3 {[%emt 0:00:45]} Kg6 {[%emt 0:00:30]} 41. f5+ {[%emt 0:30:58]} Kh6 {[%emt 0:30:12]} 42. Kf4 {[%emt 0:01:54]} f6 {[%emt 0:00:00]} 43. f3 {[%emt 0:00:00]} h4 {[%emt 0:00:00]} 44. g5+ {[%emt 0:00:00]} fxg5+ {[%emt 0:00:00]} 45. Ke5 {[%emt 0:00:00]} Ra8 {[%emt 0:00:00]} 46. f6 {[%emt 0:00:00]} Bf8 {[%emt 0:00:00]} 47. Kf5 {[%emt 0:00:00]} Kh5 {[%emt 0:00:00]} 48. Nxg5 {[%emt 0:00:00]} Ra3 {[%emt 0:00:00]} 49. f4 {[%emt 0:00:00]} Rb3 {[%emt 0:00:00]} 50. Re4 {[%emt 0:00:00]} Bh6 {[%emt 0:01:54]} 51. f7 {[%emt 0:00:00]} c4 {[%emt 0:02:44]} 52. Rxc4 {[%emt 0:00:00]} Rg3 {[%emt 0:01:06]} 53. Rc8 {[%emt 0:00:00]} Rg1 {[%emt 0:00:35]} 54. Ne6 {[%emt 0:00:00]} 1-0

[Event "Denmark Team Championship 2022"]
[Site "Denmark"]
[Date "2022.10.29"]
[Round "1.6"]
[White "Larsen, Karsten"]
[Black "Pedersen, Nicolai Vesterbaek"]
[Result "1/2-1/2"]
[ECO "B51"]
[WhiteElo "2241"]
[BlackElo "2367"]
[Annotator "ChessBase"]
[PlyCount "135"]
[EventDate "2022.10.29"]
[EventType "team-tourn"]
[EventCountry "DEN"]
[SourceTitle "playchess.com"]
[Source "ChessBase"]
[SourceQuality "1"]
[TimeControl "40/5400+30:1800+30"]

1. e4 {[%emt 0:00:25]} c5 {[%emt 0:00:25]} 2. Nf3 {[%emt 0:00:29]} d6 {[%emt 0:00:07]} 3. Bb5+ {[%emt 0:00:51]} Nd7 {[%emt 0:00:15]} 4. c3 {[%emt 0:00:39]} Ngf6 {[%emt 0:02:23]} 5. Qe2 {[%emt 0:00:44]} a6 {[%emt 0:02:22]} 6. Ba4 {[%emt 0:01:08]} b5 {[%emt 0:04:54]} 7. Bc2 {[%emt 0:01:28]} g6 {[%emt 0:07:58]} 8. d4 {[%emt 0:04:37]} e5 {[%emt 0:03:39]} 9. d5 {[%emt 0:07:25]} Bg7 {[%emt 0:07:01]} 10. a4 {[%emt 0:01:46]} Rb8 {[%emt 0:05:23]} 11. b3 {[%emt 0:07:37]} O-O {[%emt 0:05:43]} 12. axb5 {[%emt 0:04:21]} axb5 {[%emt 0:00:28]} 13. Nbd2 {[%emt 0:03:01]} Nh5 {[%emt 0:09:43]} 14. g3 {[%emt 0:02:15]} Ndf6 {[%emt 0:05:36]} 15. Nf1 {[%emt 0:15:55]} b4 {[%emt 0:06:09]} 16. c4 {[%emt 0:02:54]} Nxe4 {[%emt 0:01:56]} 17. Bxe4 {[%emt 0:00:33]} f5 {[%emt 0:00:09]} 18. Ra7 {[%emt 0:14:13]} fxe4 {[%emt 0:05:26]} 19. Ng5 {[%emt 0:01:10]} Nf6 {[%emt 0:02:19]} 20. Ne3 {[%emt 0:10:31]} Qb6 {[%emt 0:10:37]} 21. Ra2 {[%emt 0:01:19]} h6 {[%emt 0:03:54]} 22. Ne6 {[%emt 0:00:18]} Bxe6 {[%emt 0:01:27]} 23. dxe6 {[%emt 0:00:06]} Qc6 {[%emt 0:00:11]} 24. O-O {[%emt 0:02:37]} Rbe8 {[%emt 0:02:51]} 25. Bd2 {[%emt 0:06:54]} Rxe6 {[%emt 0:01:35]} 26. Rfa1 {[%emt 0:00:08]} Qe8 {[%emt 0:02:35]} 27. Ra6 {[%emt 0:00:35]} Qf7 {[%emt 0:01:41]} 28. Rc6 {[%emt 0:01:34]} h5 {[%emt 0:03:21]} 29. Raa6 {[%emt 0:00:24]} Qd7 {[%emt 0:01:31]} 30. Nd1 {[%emt 0:04:37]} Rfe8 {[%emt 0:01:41]} 31. Bg5 {[%emt 0:00:41]} d5 {[%emt 0:00:58]} 32. Rxe6 {[%emt 0:01:22]} Rxe6 {[%emt 0:00:03]} 33. Ra8+ {[%emt 0:02:59]} Re8 {[%emt 0:01:03]} 34. Rxe8+ {[%emt 0:00:13]} Nxe8 {[%emt 0:00:23]} 35. cxd5 {[%emt 0:00:08]} Qxd5 {[%emt 0:00:15]} 36. Ne3 {[%emt 0:00:30]} Qxb3 {[%emt 0:00:30]} 37. Qb5 {[%emt 0:00:28]} Qe6 {[%emt 0:00:29]} 38. Qxc5 {[%emt 0:00:27]} Bf8 {[%emt 0:00:46]} 39. Qb5 {[%emt 0:00:49]} b3 {[%emt 0:01:10]} 40. Nd5 {[%emt 0:00:11]} b2 {[%emt 0:00:54]} 41. Nc3 {[%emt 0:31:38]} Nd6 {[%emt 0:13:57]} 42. Qxb2 {[%emt 0:00:00]} Qc4 {[%emt 0:03:55]} 43. Nd1 {[%emt 0:00:00]} Nf7 {[%emt 0:01:27]} 44. Be3 {[%emt 0:00:00]} Bb4 {[%emt 0:00:13]} 45. Qc1 {[%emt 0:00:00]} Qe2 {[%emt 0:01:22]} 46. h4 {[%emt 0:00:00]} Kg7 {[%emt 0:02:17]} 47. Nc3 {[%emt 0:00:00]} Qd3 {[%emt 0:00:27]} 48. Na2 {[%emt 0:00:00]} Ba3 {[%emt 0:01:39]} 49. Qd2 {[%emt 0:00:00]} Nd6 {[%emt 0:01:37]} 50. Nc1 {[%emt 0:03:00]} Bxc1 {[%emt 0:02:55]} 51. Qxc1 {[%emt 0:00:05]} Nc4 {[%emt 0:00:07]} 52. Bh6+ {[%emt 0:00:59]} Kf7 {[%emt 0:00:25]} 53. Qa1 {[%emt 0:00:44]} Qa3 {[%emt 0:02:28]} 54. Qb1 {[%emt 0:00:29]} Nd6 {[%emt 0:00:39]} 55. Qb8 {[%emt 0:00:20]} Nf5 {[%emt 0:00:54]} 56. Qc7+ {[%emt 0:01:06]} Qe7 {[%emt 0:00:46]} 57. Qc4+ {[%emt 0:00:10]} Qe6 {[%emt 0:01:02]} 58. Qc7+ {[%emt 0:00:04]} Kg8 {[%emt 0:01:06]} 59. Qb8+ {[%emt 0:00:48]} Kh7 {[%emt 0:00:46]} 60. Bg5 {[%emt 0:00:08]} Nd6 {[%emt 0:01:01]} 61. Qc7+ {[%emt 0:00:43]} Nf7 {[%emt 0:00:19]} 62. Qb7 {[%emt 0:00:27]} Qf5 {[%emt 0:00:40]} 63. Qe7 {[%emt 0:00:13]} Kg7 {[%emt 0:00:33]} 64. Qc7 {[%emt 0:00:26]} Qe6 {[%emt 0:01:00]} 65. Qb7 {[%emt 0:00:14]} Qf5 {[%emt 0:00:23]} 66. Qe7 {[%emt 0:00:12]} Qf3 {[%emt 0:00:22]} 67. Qd7 {[%emt 0:00:34]} Qf5 {[%emt 0:00:33]} 68. Qe7 1/2-1/2

[Event "Denmark Team Championship 2022"]
[Site "Denmark"]
[Date "2022.10.29"]
[Round "1.6"]
[White "Abildlund, Jens"]
[Black "Hoi, Carsten"]
[Result "1/2-1/2"]
[ECO "D02"]
[WhiteElo "2183"]
[BlackElo "2344"]
[Annotator "ChessBase"]
[PlyCount "36"]
[EventDate "2022.10.29"]
[EventType "team-tourn"]
[EventCountry "DEN"]
[SourceTitle "playchess.com"]
[Source "ChessBase"]
[SourceQuality "1"]
[TimeControl "40/5400+30:1800+30"]

1. d4 {[%emt 0:00:06]} d5 {[%emt 0:02:06]} 2. Nf3 {[%emt 0:00:12]} Nf6 {[%emt 0:00:12]} 3. Bf4 {[%emt 0:00:08]} e6 {[%emt 0:03:11]} 4. e3 {[%emt 0:00:20]} c5 {[%emt 0:02:25]} 5. c3 {[%emt 0:00:23]} Nc6 {[%emt 0:00:18]} 6. Nbd2 {[%emt 0:00:20]} Bd6 {[%emt 0:01:17]} 7. Bg3 {[%emt 0:01:16]} O-O {[%emt 0:03:49]} 8. Bd3 {[%emt 0:00:08]} b6 {[%emt 0:03:22]} 9. Ne5 {[%emt 0:01:25]} Bb7 {[%emt 0:01:45]} 10. O-O {[%emt 0:02:11]} Ne7 {[%emt 0:05:37]} 11. Qf3 {[%emt 0:11:17]} Ng6 {[%emt 0:02:57]} 12. Nxg6 {[%emt 0:02:14]} hxg6 {[%emt 0:10:30]} 13. Bxd6 {[%emt 0:00:36]} Qxd6 {[%emt 0:00:03]} 14. Qg3 {[%emt 0:00:12]} Qxg3 {[%emt 0:02:06]} 15. hxg3 {[%emt 0:00:11]} Rfe8 {[%emt 0:03:35]} 16. f4 {[%emt 0:01:58]} a5 {[%emt 0:02:19]} 17. Rfe1 {[%emt 0:01:28]} Kf8 {[%emt 0:01:16]} 18. Nf3 {[%emt 0:02:10]} Ng4 {[%emt 0:05:36]} 1/2-1/2

[Event "Denmark Team Championship 2022"]
[Site "Denmark"]
[Date "2022.10.29"]
[Round "1.7"]
[White "Bromann, Thorbjorn"]
[Black "Hoiberg, Nina"]
[Result "1-0"]
[ECO "A40"]
[WhiteElo "2374"]
[BlackElo "2144"]
[Annotator "ChessBase"]
[PlyCount "45"]
[EventDate "2022.10.29"]
[EventType "team-tourn"]
[EventCountry "DEN"]
[SourceTitle "playchess.com"]
[Source "ChessBase"]
[SourceQuality "1"]
[TimeControl "40/5400+30:1800+30"]

1. d4 {[%emt 0:00:07]} Nc6 {[%emt 0:00:23]} 2. Nf3 {[%emt 0:09:40]} d5 {[%emt 0:02:43]} 3. e3 {[%emt 0:00:09]} Bg4 {[%emt 0:01:23]} 4. Bb5 {[%emt 0:00:14]} e6 {[%emt 0:10:53]} 5. c4 {[%emt 0:12:19]} Bb4+ {[%emt 0:13:41]} 6. Nc3 {[%emt 0:00:26]} Nge7 {[%emt 0:01:26]} 7. h3 {[%emt 0:13:06]} Bxf3 {[%emt 0:01:21]} 8. Qxf3 {[%emt 0:00:06]} a6 {[%emt 0:02:11]} 9. cxd5 {[%emt 0:06:46]} axb5 {[%emt 0:11:21]} 10. dxc6 {[%emt 0:00:08]} Nxc6 {[%emt 0:00:50]} 11. O-O {[%emt 0:02:31]} Bxc3 {[%emt 0:03:30]} 12. bxc3 {[%emt 0:00:08]} Qd5 {[%emt 0:00:15]} 13. e4 {[%emt 0:07:46]} Qc4 {[%emt 0:00:28]} 14. Qg3 {[%emt 0:03:22]} O-O-O {[%emt 0:02:19]} 15. Bf4 {[%emt 0:02:41]} e5 {[%emt 0:11:23]} 16. Bxe5 {[%emt 0:00:55]} Nxe5 {[%emt 0:01:05]} 17. Qxe5 {[%emt 0:00:08]} b4 {[%emt 0:07:04]} 18. cxb4 {[%emt 0:05:36]} Qxd4 {[%emt 0:01:09]} 19. Qf5+ {[%emt 0:00:54]} Kb8 {[%emt 0:02:58]} 20. b5 {[%emt 0:09:21]} g6 {[%emt 0:04:43]} 21. Qf3 {[%emt 0:04:39]} Rde8 {[%emt 0:03:32]} 22. Rfd1 {[%emt 0:01:56]} Qxe4 {[%emt 0:02:22]} 23. Rd8+ {[%emt 0:00:59]} 1-0